bitfinex/quotes_SOLUSD_20250305
["timestamp","ask_amount","ask_price","bid_price","bid_amount"]
[1741193688365,81.0,141.7,141.67,2.0]
[1741193688875,81.0,141.7,141.66,2.0]
[1741193689280,81.0,141.7,141.67,2.0]
[1741193689496,0.42648471,141.69,141.66,2.0]
[1741193689680,0.42648471,141.69,141.64,2.0]
[1741193689978,81.0,141.68,141.63,2.0]
[1741193690176,0.14216157,141.67,141.63,2.0]
[1741193690375,81.14216157,141.67,141.63,2.0]
[1741193691179,18.933972,141.65,141.62,0.033]
[1741193691360,81.0,141.64,141.62,0.033]
[1741193691560,7.0606,141.63,141.62,0.033]
[1741193692461,26.13673357,141.63,141.62,0.033]
[1741193692689,31.69600256,141.63,141.62,0.0001]
[1741193692863,38.23300256,141.63,141.62,0.0001]
[1741193693264,6.82132314,141.63,141.62,0.0001]
[1741193693467,0.28432314,141.63,141.62,0.0001]
[1741193694990,0.42648471,141.63,141.62,0.0001]
[1741193695367,6.537,141.67,141.62,0.0001]
[1741193695569,19.16636343,141.67,141.62,0.0001]
[1741193695882,0.56864628,141.65,141.62,0.0001]
[1741193696273,12.10776343,141.67,141.62,0.0001]
[1741193696489,19.16666343,141.67,141.62,0.0001]
[1741193696677,81.0,141.64,141.62,2.0001]
[1741193697289,0.14216157,141.63,141.62,0.0001]
[1741193697774,81.0,141.64,141.62,0.0001]
[1741193697988,0.14216157,141.63,141.62,0.0001]
[1741193698590,81.0,141.64,141.62,0.0001]
[1741193698982,81.0,141.64,141.62,2.0001]
[1741193699694,81.0,141.66,141.63,2.0]
[1741193699991,81.0,141.68,141.65,2.0]
[1741193700195,81.0,141.7,141.65,2.0]
[1741193700495,81.0,141.7,141.68,2.0]
[1741193701094,81.0,141.7,141.69,2.0]
[1741193701473,81.0,141.69,141.67,2.0]
[1741193701680,81.0,141.69,141.65,2.0]
[1741193701986,81.0,141.71,141.67,2.0]
[1741193702174,81.0,141.71,141.7,2.0]
[1741193702694,0.0001,141.72,141.71,2.0]
[1741193704176,0.0001,141.72,141.7,2.0]
[1741193704389,0.0001,141.72,141.69,2.0]
[1741193704583,0.0001,141.72,141.7,2.0]
[1741193705002,0.0001,141.72,141.69,2.0]
[1741193705201,0.0001,141.72,141.67,6.0113]
[1741193705202,0.0001,141.72,141.7,2.0]
[1741193705606,0.0001,141.72,141.71,2.0]
[1741193705908,0.0001,141.72,141.7,2.0]
[1741193706208,0.0001,141.72,141.71,2.0]
[1741193706517,0.0001,141.72,141.71,32.27369386]
[1741193707012,0.0001,141.72,141.71,2.0]
[1741193707213,0.0001,141.72,141.71,32.27369386]
[1741193707418,0.0001,141.72,141.71,2.0]
[1741193708612,0.0001,141.72,141.69,2.0]
[1741193708781,0.0001,141.72,141.7,2.0]
[1741193708985,0.0001,141.72,141.69,2.0]
[1741193709183,0.0001,141.72,141.7,2.0]
[1741193709405,0.0001,141.72,141.71,2.0]
[1741193709580,0.0001,141.72,141.7,2.0]
[1741193709911,7.0562,141.72,141.69,2.0]
[1741193710209,0.0001,141.72,141.71,2.0]
[1741193710507,0.0001,141.72,141.7,2.0]
[1741193710712,0.0001,141.72,141.71,2.0]
[1741193711081,0.0001,141.72,141.7,2.0]
[1741193711276,0.0001,141.72,141.69,2.0]
[1741193711502,0.0001,141.72,141.7,2.0]
[1741193711888,0.0001,141.72,141.69,2.0]
[1741193712183,0.0001,141.72,141.7,2.0]
[1741193712184,81.0001,141.72,141.7,2.0]
[1741193712399,0.0001,141.72,141.71,2.0]
[1741193712792,0.0001,141.72,141.69,2.0]
[1741193713117,0.0001,141.72,141.7,2.0]
[1741193713413,0.0001,141.72,141.71,2.0]
[1741193713615,0.0001,141.72,141.7,2.0]
[1741193713780,0.0001,141.72,141.71,2.0]
[1741193714184,0.0001,141.72,141.71,39.33029386]
[1741193714621,0.0001,141.72,141.71,9.0566]
[1741193715128,0.0001,141.72,141.71,2.0]
[1741193715291,0.0001,141.72,141.7,2.0]
[1741193715689,0.0001,141.72,141.67,80.9]
[1741193715690,0.0001,141.72,141.69,2.0]
[1741193715885,0.0001,141.72,141.68,2.0]
[1741193716095,7.0571,141.7,141.66,2.0]
[1741193716295,81.0,141.7,141.68,2.0]
[1741193716498,81.0,141.7,141.69,2.0]
[1741193716705,0.0001,141.72,141.69,2.0]
[1741193716913,0.0001,141.72,141.71,2.0]
[1741193717492,0.0001,141.72,141.71,32.27369386]
[1741193717818,0.0001,141.72,141.71,115.22396385]
[1741193717986,0.0001,141.72,141.71,239.73145114]
[1741193718311,0.0001,141.72,141.71,245.448589]
[1741193718493,0.0001,141.72,141.71,557.448589]
[1741193718816,1.9842654,141.78,141.77,2.0]
[1741193719519,1.9842654,141.78,141.77,140.293689]
[1741193719725,6.54e-05,141.78,141.77,141.77469294]
[1741193719900,6.54e-05,141.78,141.77,140.293689]
[1741193720237,21.84142388,141.8,141.79,2.0]
[1741193720238,3.582e-05,141.8,141.79,2.0]
[1741193720395,9.62633348,141.83,141.8,18.79181043]
[1741193720596,21.83950581,141.88,141.86,2.0]
[1741193722127,21.83950581,141.88,141.86,314.0]
[1741193723096,28.88780581,141.88,141.86,312.0]
[1741193723316,28.88780581,141.88,141.86,314.0]
[1741193723521,81.0,141.86,141.84,2.0]
[1741193723818,81.0,141.86,141.85,2.0]
[1741193724314,88.0492,141.86,141.82,2.0]
[1741193724523,88.0492,141.86,141.83,2.0]
[1741193724718,88.0492,141.86,141.82,2.0]
[1741193724915,88.0492,141.86,141.83,2.0]
[1741193725123,88.0492,141.86,141.82,2.0]
[1741193725426,88.0492,141.86,141.83,2.0]
[1741193725803,81.03,141.87,141.83,2.0]
[1741193726014,88.0787,141.87,141.85,2.0]
[1741193726516,0.14216157,141.86,141.82,2.0]
[1741193726717,81.0,141.85,141.81,2.0]
[1741193727026,81.0,141.84,141.8,2.0]
[1741193727221,81.0,141.83,141.78,2.0]
[1741193727711,81.0,141.83,141.79,2.0]
[1741193727908,81.0,141.85,141.8,2.0]
[1741193728529,81.0,141.85,141.75,80.9]
[1741193728530,7.0501,141.84,141.79,2.0]
[1741193728701,7.0501,141.84,141.78,2.0]
[1741193728702,81.42648471,141.83,141.78,2.0]
[1741193729020,81.0,141.82,141.78,2.0]
[1741193729229,81.0,141.82,141.77,2.0]
[1741193729435,81.0,141.81,141.77,2.0]
[1741193730426,81.0,141.81,141.74,319.055]
[1741193730427,81.0,141.81,141.78,2.0]
[1741193730624,88.0521,141.81,141.77,2.0]
[1741193731512,88.0521,141.81,141.78,2.0]
[1741193731915,88.0521,141.81,141.77,2.0]
[1741193732113,0.56864628,141.8,141.75,2.0]
[1741193732518,0.56864628,141.8,141.74,2.0]
[1741193732519,88.0526,141.79,141.74,2.0]
[1741193732730,81.0,141.78,141.75,2.0]
[1741193733113,81.0,141.85,141.76,2.0]
[1741193733446,81.0,141.86,141.82,2.0]
[1741193733615,81.0,141.86,141.83,2.0]
[1741193734807,0.03,141.87,141.84,2.0]
[1741193735005,0.03,141.87,141.85,2.0]
[1741193735945,7.22086157,141.87,141.83,2.0]
[1741193736546,7.22086157,141.87,141.82,2.0]
[1741193736710,81.0,141.86,141.83,2.0]
[1741193736906,81.14216157,141.85,141.82,2.0]
[1741193737110,81.0,141.84,141.8,2.0]
[1741193737545,81.0,141.83,141.79,2.0]
[1741193737718,0.14216157,141.82,141.78,2.0]
[1741193738147,81.0,141.83,141.79,2.0]
[1741193738341,81.0,141.82,141.8,2.0]
[1741193738523,81.0,141.88,141.85,2.0]
[1741193738839,81.0,141.9,141.86,2.0]
[1741193739223,88.0474,141.9,141.85,2.0]
[1741193739426,43.68284777,142.05,142.04,20.64964886]
[1741193739612,43.68284777,142.05,142.03,2.0]
[1741193739909,43.68284777,142.05,142.0,2.0]
[1741193740110,43.68284777,142.05,141.98,2.0]
[1741193740340,43.68284777,142.05,141.95,2.0]
[1741193740541,18.79181043,142.04,141.97,2.0]
[1741193740842,18.64964886,142.04,141.97,2.0]
[1741193741045,0.28432314,142.03,141.97,2.0]
[1741193741245,0.14216157,142.03,141.97,2.0]
[1741193741752,43.68284777,142.05,141.97,2.0]
[1741193741945,1.9842654,142.06,142.05,2.0]
[1741193742121,1.9842654,142.06,142.05,50.95798294]
[1741193745019,1.9842654,142.06,142.05,362.95798294]
[1741193745343,58.47681519,142.17,142.11,2.0]
[1741193745532,24.16513976,142.16,142.12,2.0]
[1741193745742,105.16513976,142.16,142.12,2.0]
[1741193746418,24.16513976,142.16,142.12,2.0]
[1741193746943,0.42648471,142.14,142.09,2.0]
[1741193747150,81.14216157,142.13,142.08,2.0]
[1741193747322,81.0,142.13,142.1,2.0]
[1741193747723,81.0,142.13,142.08,50.95798294]
[1741193748018,81.14216157,142.12,142.08,2.0]
[1741193748217,81.0,142.12,142.1,2.0]
[1741193748968,81.0,142.12,142.09,48.95798294]
[1741193748969,81.0,142.12,142.09,2.0]
[1741193749150,81.0,142.12,142.08,2.0]
[1741193749331,81.0,142.12,142.04,330.64964886]
[1741193749332,81.0,142.12,142.07,2.0]
[1741193749645,18.64964886,142.18,142.07,2.0]
[1741193749646,7.61167567,142.48,142.47,2.0]
[1741193749846,0.61167567,142.48,142.47,126.77063108]
[1741193750050,6.1736,142.69,142.52,2.0]
[1741193750261,81.0,142.61,142.53,48.95798294]
[1741193750440,17.5265,142.65,142.53,50.95798294]
[1741193750646,81.0,142.62,142.53,48.95798294]
[1741193751167,17.5265,142.65,142.53,48.95798294]
[1741193751369,19.5132654,142.63,142.52,2.0]
[1741193751535,7.0138,142.58,142.53,48.95798294]
[1741193751739,7.0142,142.57,142.52,48.95798294]
[1741193752174,81.0,142.62,142.48,2.0]
[1741193752340,7.0147,142.56,142.51,48.95798294]
[1741193752538,20.0,142.58,142.51,48.95798294]
[1741193752760,7.0152,142.55,142.5,48.95798294]
[1741193752970,20.0,142.57,142.49,48.95798294]
[1741193753144,20.0,142.57,142.5,48.95798294]
[1741193753467,20.0,142.56,142.51,48.95798294]
[1741193753645,20.0,142.56,142.5,48.95798294]
[1741193753847,20.0,142.56,142.47,2.0]
[1741193753848,0.28432314,142.55,142.47,2.0]
[1741193754157,0.14216157,142.55,142.48,48.95798294]
[1741193754356,0.28432314,142.55,142.49,48.95798294]
[1741193754680,0.14216157,142.54,142.48,50.95798294]
[1741193755042,7.016,142.53,142.48,48.95798294]
[1741193755539,7.016,142.53,142.48,50.95798294]
[1741193756565,7.016,142.53,142.48,48.95798294]
[1741193756765,7.016,142.53,142.46,2.0]
[1741193756941,7.016,142.53,142.49,48.95798294]
[1741193757143,7.016,142.53,142.48,48.95798294]
[1741193757469,7.016,142.53,142.48,50.95798294]
[1741193757672,7.016,142.53,142.48,48.95798294]
[1741193757960,7.016,142.53,142.49,48.95798294]
[1741193758165,7.016,142.53,142.47,2.0]
[1741193758463,0.14216157,142.52,142.46,2.0]
[1741193758647,0.14216157,142.52,142.47,2.0]
[1741193758962,7.017,142.51,142.47,2.0]
[1741193759468,0.14216157,142.53,142.47,2.0]
[1741193759942,0.28432314,142.53,142.47,2.0]
[1741193760145,20.0,142.52,142.47,2.0]
[1741193760458,0.14216157,142.52,142.45,2.0]
[1741193760762,0.14216157,142.51,142.45,2.0]
[1741193761061,7.017,142.51,142.47,2.0]
[1741193761565,7.017,142.51,142.48,2.0]
[1741193762064,20.0,142.54,142.48,2.0]
[1741193762253,24.5496,142.57,142.49,2.0]
[1741193762450,24.5496,142.57,142.39,52.0]
[1741193762451,48.06174628,142.53,142.4,2.174e-05]
[1741193762654,48.06174628,142.53,142.36,21.11385]
[1741193762655,0.14216157,142.45,142.36,21.11385]
[1741193762962,20.0,142.41,142.23,165.47988847]
[1741193763268,24.71726157,142.42,142.28,48.95798294]
[1741193763444,7.16016157,142.49,142.34,48.95798294]
[1741193763651,0.28432314,142.47,142.35,18.64964886]
[1741193763967,98.5463,142.48,142.37,18.64964886]
[1741193764170,0.14216157,142.47,142.37,18.64964886]
[1741193764375,17.5463,142.48,142.37,18.64964886]
[1741193764564,7.018,142.49,142.4,48.95798294]
[1741193764767,7.018,142.49,142.4,18.64964886]
[1741193765076,0.28432314,142.49,142.37,49.10014451]
[1741193765372,82.75792314,142.49,142.36,69.10014451]
[1741193765574,0.28432314,142.45,142.34,56.35798294]
[1741193765763,0.28432314,142.45,142.34,7.4]
[1741193766147,0.14216157,142.42,142.34,7.4]
[1741193766472,82.90008471,142.41,142.29,48.95798294]
[1741193766671,82.90008471,142.41,142.27,15.3271289]
[1741193766672,0.42648471,142.39,142.28,48.95798294]
[1741193766888,20.0,142.37,142.28,48.95798294]
[1741193767174,7.0244,142.36,142.27,6.4721]
[1741193767351,24.5855,142.36,142.27,55.43008294]
[1741193767548,7.024,142.37,142.3,48.95798294]
[1741193767776,81.0,142.38,142.32,48.95798294]
[1741193768072,7.0235,142.38,142.31,48.95798294]
[1741193768267,7.0235,142.38,142.3,48.95798294]
[1741193768581,7.0235,142.38,142.28,20.1246556]
[1741193768582,24.5821,142.38,142.28,18.64964886]
[1741193768756,24.5821,142.38,142.29,48.95798294]
[1741193769583,0.14216157,142.37,142.28,67.6076318]
[1741193769765,0.14216157,142.37,142.27,6.4721]
[1741193769955,0.14216157,142.37,142.28,48.95798294]
[1741193770157,0.42648471,142.37,142.27,48.95798294]
[1741193770487,0.14216157,142.35,142.23,48.95798294]
[1741193770685,0.42648471,142.33,142.22,48.95798294]
[1741193770860,82.4736,142.32,142.2,13.7971]
[1741193771062,0.14216157,142.31,142.21,48.95798294]
[1741193771263,0.14216157,142.3,142.21,48.95798294]
[1741193771673,0.14216157,142.25,142.11,8.6232]
[1741193771978,20.0,142.25,142.16,48.95798294]
[1741193772163,20.0,142.25,142.17,48.95798294]
[1741193772589,0.14216157,142.26,142.17,18.64964886]
[1741193772794,17.5642,142.34,142.25,48.95798294]
[1741193772997,7.0259,142.33,142.28,48.95798294]
[1741193773291,17.5642,142.34,142.27,48.95798294]
[1741193773860,17.5642,142.34,142.26,48.95798294]
[1741193774256,17.5642,142.34,142.25,67.6076318]
[1741193774485,24.5855,142.36,142.28,48.95798294]
[1741193774785,59.7077,142.36,142.25,48.95798294]
[1741193774960,1.75792314,142.35,142.24,48.95798294]
[1741193775158,24.5941,142.31,142.22,48.95798294]
[1741193775378,24.5941,142.31,142.21,48.95798294]
[1741193775563,24.5941,142.31,142.21,18.64964886]
[1741193775772,0.14216157,142.3,142.22,312.0]
[1741193776171,24.5941,142.31,142.22,312.033]
[1741193776491,24.5941,142.31,142.22,360.99098294]
[1741193776981,24.5941,142.31,142.22,312.033]
[1741193777195,0.14216157,142.3,142.22,312.033]
[1741193777569,24.5976,142.29,142.22,312.033]
[1741193778569,7.0279,142.29,142.23,18.64964886]
[1741193778776,7.0269,142.31,142.25,48.95798294]
[1741193778977,7.0269,142.31,142.26,48.95798294]
[1741193779176,24.5941,142.31,142.23,48.95798294]
[1741193779386,81.0,142.34,142.24,50.4339331]
[1741193779582,24.5907,142.33,142.25,18.64964886]
[1741193779777,24.5907,142.33,142.24,48.95798294]
[1741193780087,0.14216157,142.32,142.23,48.95798294]
[1741193780393,0.14216157,142.32,142.22,0.033]
[1741193780394,81.14216157,142.32,142.22,0.033]
[1741193780686,0.14216157,142.3,142.22,0.033]
[1741193781064,1.4736,142.31,142.22,0.033]
[1741193781390,0.14216157,142.31,142.22,0.033]
[1741193781586,7.0274,142.3,142.22,360.99098294]
[1741193781798,7.0274,142.3,142.22,312.033]
[1741193781799,0.14216157,142.29,142.22,312.033]
[1741193782087,0.14216157,142.29,142.22,0.033]
[1741193782286,1.75792314,142.29,142.22,0.033]
[1741193782590,0.28432314,142.26,142.22,0.033]
[1741193782774,81.28432314,142.26,142.22,0.033]
[1741193783290,0.28432314,142.24,142.22,0.033]
[1741193783466,21.75792314,142.23,142.22,0.033]
[1741193783672,0.28432314,142.22,142.11,48.95798294]
[1741193783872,82.75792314,142.22,142.11,48.95798294]
[1741193784273,81.0,142.21,142.11,48.95798294]
[1741193785096,81.0,142.21,142.12,312.0]
[1741193785788,35.1543,142.23,142.12,312.0]
[1741193785789,0.14216157,142.18,142.12,312.0]
[1741193785992,1.61576157,142.18,142.1,0.033]
[1741193787588,1.61576157,142.18,142.1,7.0701]
[1741193787897,0.14216157,142.18,142.1,56.02808294]
[1741193788309,1.4736,142.2,142.14,0.28432314]
[1741193788602,81.0,142.25,142.15,48.95798294]
[1741193788791,8.93038471,142.24,142.13,48.95798294]
[1741193788976,8.93038471,142.24,142.15,312.0]
[1741193788977,0.14216157,142.22,142.15,312.0]
[1741193789176,81.0,142.21,142.15,312.0]
[1741193789377,81.0,142.21,142.15,48.95798294]
[1741193789789,81.0,142.21,142.15,55.99258294]
[1741193790110,81.0,142.21,142.13,55.99368294]
[1741193790270,81.0,142.21,142.12,48.95798294]
[1741193790475,81.0,142.21,142.12,7.0361]
[1741193790788,0.28432314,142.2,142.1,56.21098294]
[1741193790974,0.28432314,142.2,142.1,63.24818294]
[1741193791176,0.14216157,142.2,142.1,63.24818294]
[1741193791371,0.28432314,142.2,142.11,48.95798294]
[1741193791678,0.28432314,142.2,142.1,63.24818294]
[1741193791904,7.31702314,142.2,142.1,63.24818294]
[1741193792197,81.0,142.19,142.1,7.0701]
[1741193792496,7.0316,142.22,142.13,18.64964886]
[1741193792790,7.0316,142.22,142.13,48.95798294]
[1741193792999,0.28432314,142.21,142.11,48.95798294]
[1741193793202,1.75792314,142.21,142.1,56.02808294]
[1741193793592,0.28432314,142.21,142.1,56.02808294]
[1741193793774,7.31662314,142.21,142.1,56.02808294]
[1741193793974,7.31662314,142.21,142.11,48.95798294]
[1741193794175,0.14216157,142.21,142.12,48.95798294]
[1741193794385,7.17396157,142.21,142.11,67.6076318]
[1741193794579,0.14216157,142.21,142.12,48.95798294]
[1741193794883,82.4736,142.26,142.15,48.95798294]
[1741193795188,0.28432314,142.25,142.15,48.95798294]
[1741193795575,7.0299,142.25,142.15,48.95798294]
[1741193795772,0.14216157,142.24,142.15,48.95798294]
[1741193795986,0.14216157,142.24,142.14,1.47675832]
[1741193795987,7.0306,142.24,142.17,312.0]
[1741193796176,0.14216157,142.23,142.17,312.0]
[1741193796384,1.75792314,142.23,142.12,7.0363]
[1741193797184,0.28432314,142.23,142.13,48.95798294]
[1741193797482,20.0,142.21,142.12,75.06218142]
[1741193797703,20.0,142.21,142.13,48.95798294]
[1741193797889,20.0,142.21,142.13,7.0358]
[1741193797890,0.14216157,142.2,142.13,7.0358]
[1741193798414,92.01375892,142.29,142.14,1.7615269]
[1741193798703,89.0098,142.29,142.17,48.95798294]
[1741193798881,89.0098,142.29,142.16,49.10014451]
[1741193799084,20.0,142.25,142.15,49.24230608]
[1741193799407,20.0,142.25,142.18,312.0]
[1741193799598,0.14216157,142.27,142.18,312.0]
[1741193799905,27.0293,142.26,142.19,7.0328]
[1741193800085,7.0293,142.26,142.19,7.0328]
[1741193800282,8.5021,142.28,142.19,24.6149]
[1741193800603,13.5642,142.29,142.19,73.57288294]
[1741193800986,0.14216157,142.28,142.19,73.57288294]
[1741193801681,98.5635,142.34,142.21,49.24230608]
[1741193802010,7.0255,142.34,142.25,18.64964886]
[1741193802300,15.1265,142.35,142.25,18.64964886]
[1741193802503,0.14216157,142.34,142.24,48.95798294]
[1741193802681,0.14216157,142.34,142.24,0.28432314]
[1741193802878,1.4736,142.34,142.23,48.95798294]
[1741193803081,1.4736,142.34,142.25,312.0]
[1741193803287,0.14216157,142.33,142.25,312.0]
[1741193803483,0.14216157,142.33,142.19,17.5821]
[1741193803484,0.28432314,142.33,142.21,48.95798294]
[1741193803700,0.28432314,142.31,142.21,7.0313]
[1741193803895,106.35032314,142.32,142.2,7.0322]
[1741193804096,0.28432314,142.31,142.19,48.95798294]
[1741193804302,1.4736,142.3,142.18,56.27540608]
[1741193804508,81.75792314,142.3,142.18,56.27540608]
[1741193804703,81.75792314,142.3,142.2,49.24230608]
[1741193804890,80.28432314,142.3,142.21,48.95798294]
[1741193805083,7.0264,142.32,142.23,48.95798294]
[1741193805284,7.0264,142.32,142.24,48.95798294]
[1741193805703,87.31032314,142.33,142.25,7.0298]
[1741193805916,95.41092314,142.35,142.26,48.95798294]
[1741193806204,7.0234,142.38,142.26,48.95798294]
[1741193806406,0.14216157,142.34,142.25,55.98778294]
[1741193806588,20.0,142.35,142.26,312.0]
[1741193806794,0.14216157,142.34,142.26,360.95798294]
[1741193806998,0.14216157,142.34,142.26,48.95798294]
[1741193807303,80.28432314,142.36,142.27,48.95798294]
[1741193807507,0.14216157,142.35,142.25,55.98778294]
[1741193807706,24.5889,142.34,142.24,0.28432314]
[1741193807889,24.5889,142.34,142.24,18.933972]
[1741193808092,24.5889,142.34,142.25,18.64964886]
[1741193808294,0.14216157,142.33,142.23,7.0308]
[1741193808487,24.5889,142.34,142.23,55.98878294]
[1741193808693,0.14216157,142.33,142.24,67.6076318]
[1741193809589,7.0264,142.32,142.25,7.0298]
[1741193809796,7.0264,142.32,142.24,18.64964886]
[1741193810009,7.0264,142.32,142.25,312.0]
[1741193810812,7.0264,142.32,142.25,360.95798294]
[1741193810995,17.5635,142.34,142.25,312.0]
[1741193811195,24.5889,142.34,142.25,312.0]
[1741193812087,0.14216157,142.33,142.25,312.0]
[1741193813112,0.14216157,142.31,142.22,55.98928294]
[1741193813317,0.14216157,142.31,142.21,6.98]
[1741193813318,0.14216157,142.31,142.21,25.68124886]
[1741193813516,0.14216157,142.31,142.21,18.64964886]
[1741193813697,0.14216157,142.29,142.2,7.0321]
[1741193814418,0.14216157,142.29,142.2,55.99008294]
[1741193815131,7.0274,142.3,142.22,48.95798294]
[1741193815415,7.0264,142.32,142.24,48.95798294]
[1741193815789,0.14216157,142.31,142.23,48.95798294]
[1741193816005,24.5924,142.32,142.23,48.95798294]
[1741193816006,24.5924,142.32,142.24,0.033]
[1741193816204,0.14216157,142.31,142.24,0.033]
[1741193817017,1.4736,142.32,142.24,0.45948471]
[1741193817195,0.03,142.34,142.25,48.95798294]
[1741193817396,7.0261,142.33,142.24,0.033]
[1741193817607,0.14216157,142.32,142.24,0.033]
[1741193818416,0.03,142.34,142.24,50.46693702]
[1741193818799,7.0556,142.34,142.24,50.46693702]
[1741193819000,0.03,142.34,142.24,50.46693702]
[1741193819207,0.03,142.34,142.25,55.98778294]
[1741193819392,0.03,142.34,142.27,67.6076318]
[1741193819592,0.03,142.34,142.28,48.95798294]
[1741193819797,0.03,142.34,142.29,67.6076318]
[1741193820099,0.03,142.34,142.3,312.0]
[1741193820294,0.03,142.34,142.26,6.9]
[1741193820514,0.03,142.34,142.3,67.6076318]
[1741193820823,0.03,142.34,142.33,0.28432314]
[1741193821028,0.03,142.34,142.33,69.36669063]
[1741193821318,0.0001,142.34,142.33,76.39259063]
[1741193822027,0.0001,142.34,142.33,74.6335318]
[1741193822227,0.0001,142.34,142.33,76.39279407]
[1741193822541,0.0001,142.34,142.33,69.2247325]
[1741193822702,0.0001,142.34,142.3,0.14216157]
[1741193822901,0.0001,142.34,142.31,0.14216157]
[1741193823224,0.0001,142.34,142.33,379.89195494]
[1741193823595,0.0001,142.34,142.33,330.64964886]
[1741193823824,0.0001,142.34,142.31,55.98468294]
[1741193824029,0.0001,142.34,142.3,49.24230608]
[1741193824240,0.0001,142.34,142.33,67.6076318]
[1741193824836,0.0001,142.34,142.33,48.95798294]
[1741193825210,0.0001,142.34,142.33,55.98388294]
[1741193826938,0.0001,142.34,142.33,386.6335318]
[1741193827310,0.0001,142.34,142.33,55.98388294]
[1741193828832,0.0001,142.34,142.32,7.0262]
[1741193829036,0.0001,142.34,142.31,55.98478294]
[1741193829215,0.0001,142.34,142.29,48.95798294]
[1741193829533,0.0001,142.34,142.3,48.95798294]
[1741193830133,0.0001,142.34,142.27,48.95798294]
[1741193830432,0.0001,142.34,142.28,312.0]
[1741193830653,0.0001,142.34,142.26,48.95798294]
[1741193830816,7.0255,142.34,142.25,55.98778294]
[1741193831243,7.0255,142.34,142.26,48.95798294]
[1741193831722,24.589,142.34,142.26,48.95798294]
[1741193831928,24.589,142.34,142.25,55.98778294]
[1741193832135,24.589,142.34,142.27,48.95798294]
[1741193832136,7.0255,142.34,142.27,48.95798294]
[1741193832637,7.0255,142.34,142.26,1.47555988]
[1741193832848,17.5636,142.34,142.25,55.98778294]
[1741193833448,0.0001,142.34,142.27,48.95798294]
[1741193833745,0.0001,142.34,142.26,360.95798294]
[1741193834837,0.0001,142.34,142.27,48.95798294]
[1741193835037,0.0001,142.34,142.28,48.95798294]
[1741193835638,0.0001,142.34,142.25,55.98768294]
[1741193836017,0.0001,142.34,142.26,48.95798294]
[1741193836211,0.0001,142.34,142.25,7.0297]
[1741193836521,1.4737,142.34,142.25,7.0297]
[1741193836722,1.4737,142.34,142.24,7.0631]
[1741193837240,21.4737,142.34,142.24,7.0631]
[1741193837446,6.4395,142.32,142.24,0.033]
[1741193837742,6.4395,142.32,142.25,48.95798294]
[1741193837920,6.4395,142.32,142.26,48.95798294]
[1741193838324,88.89492314,142.33,142.24,312.033]
[1741193838325,1.5847,142.33,142.27,48.95798294]
[1741193838640,7.0256,142.34,142.26,48.95798294]
[1741193838839,7.0256,142.34,142.25,48.95798294]
[1741193839247,1.4736,142.33,142.24,7.0633]
[1741193839638,80.28432314,142.32,142.24,0.033]
[1741193839948,80.28432314,142.32,142.25,7.0298]
[1741193840724,1.4736,142.31,142.24,0.033]
[1741193841526,1.5585,142.29,142.24,0.033]
[1741193841728,3.0321,142.29,142.24,0.033]
[1741193842247,6.1652,142.28,142.24,0.033]
[1741193842430,81.90008471,142.27,142.24,0.033]
[1741193842774,0.14216157,142.25,142.13,7.0358]
[1741193842933,81.75792314,142.24,142.14,48.95798294]
[1741193843545,7.0313,142.22,142.14,48.95798294]
[1741193843746,7.0313,142.22,142.13,7.0358]
[1741193843747,26.0832,142.22,142.13,48.95798294]
[1741193844047,0.14216157,142.21,142.12,48.95798294]
[1741193844532,80.42648471,142.21,142.12,48.95798294]
[1741193844725,80.42648471,142.21,142.13,0.033]